bitfinex/quotes_SOLUSD_20220210
["timestamp","ask_amount","ask_price","bid_price","bid_amount"]
[1644531707831,17.203,108.22,108.17,43.92705408]
[1644531708831,11.203,108.22,108.17,44.17705408]
[1644531709032,4.621,108.24,108.18,13.8648]
[1644531709331,0.04509078,108.26,108.18,36.38265791]
[1644531709532,0.04509078,108.26,108.18,38.19094259]
[1644531709933,0.04509078,108.26,108.19,40.00335637]
[1644531710155,0.04509078,108.26,108.22,41.18364264]
[1644531710332,83.65493093,108.27,108.22,41.43364264]
[1644531710532,46.2096,108.27,108.22,41.43364264]
[1644531711433,46.2096,108.27,108.22,43.24192732]
[1644531711632,46.2096,108.27,108.22,49.24192732]
[1644531711832,46.2096,108.27,108.23,13.8592]
[1644531712033,46.2096,108.27,108.24,37.14186644]
[1644531712235,46.2096,108.27,108.24,37.39186644]
[1644531713737,46.2096,108.27,108.25,13.8565]
[1644531714036,46.2096,108.27,108.26,48.29198797]
[1644531714235,47.87777421,108.3,108.26,48.29198797]
[1644531714936,47.87777421,108.3,108.25,13.8565]
[1644531715137,52.49477421,108.3,108.25,13.8565]
[1644531715736,52.74477421,108.3,108.25,13.8565]
[1644531716036,52.74477421,108.3,108.25,55.18404099]
[1644531716639,4.867,108.3,108.25,55.18404099]
[1644531717538,44.40070407,108.3,108.25,55.18404099]
[1644531718343,50.40070407,108.3,108.25,55.18404099]
[1644531718543,4.617,108.29,108.25,55.18404099]
[1644531719543,4.117,108.29,108.25,55.18404099]
[1644531720445,44.15070407,108.3,108.25,55.18404099]
[1644531720851,50.15070407,108.3,108.25,55.18404099]
[1644531721053,44.15070407,108.3,108.25,55.18404099]
[1644531721450,50.15070407,108.3,108.25,55.18404099]
[1644531721650,50.15070407,108.3,108.25,13.8565]
[1644531721850,44.15070407,108.3,108.25,13.8565]
[1644531722453,44.40070407,108.3,108.25,13.8565]
[1644531722654,44.40070407,108.3,108.25,60.8499737]
[1644531723654,50.40070407,108.3,108.25,60.8499737]
[1644531724055,44.40070407,108.3,108.25,60.8499737]
[1644531724858,50.40070407,108.3,108.25,60.8499737]
[1644531725057,44.40070407,108.3,108.25,60.8499737]
[1644531727568,50.40070407,108.3,108.25,60.8499737]
[1644531729870,50.40070407,108.3,108.25,13.8565]
[1644531730070,50.40070407,108.3,108.24,13.859]
[1644531730271,4.618,108.29,108.2,46.2001]
[1644531730770,10.618,108.29,108.2,46.2001]
[1644531730972,35.71008025,108.28,108.21,35.40295378]
[1644531731372,41.71008025,108.28,108.21,35.40295378]
[1644531731573,46.63813677,108.26,108.21,35.40295378]
[1644531731772,46.63813677,108.26,108.22,13.8614]
[1644531734574,46.63813677,108.26,108.21,13.8628]
[1644531734776,23.2993,108.25,108.21,13.8628]
[1644531736075,40.96805792,108.24,108.21,13.8628]
[1644531736274,6.06439994,108.23,108.21,13.8628]
[1644531736876,6.06439994,108.23,108.2,13.8641]
[1644531738476,6.06439994,108.23,108.19,13.8652]
[1644531738875,6.06439994,108.23,108.16,46.2172]
[1644531739077,10.68539994,108.23,108.16,46.4672]
[1644531739477,48.63948654,108.22,108.16,83.87576876]
[1644531739876,48.63948654,108.22,108.18,13.8667]
[1644531740080,48.63948654,108.22,108.16,37.40856876]
[1644531740276,4.621,108.21,108.13,1.80365401]
[1644531740478,32.8758,108.21,108.14,6.0]
[1644531740679,32.8758,108.21,108.13,7.80365401]
[1644531741279,42.4943815,108.2,108.14,38.2360201]
[1644531741678,42.4943815,108.2,108.14,44.2360201]
[1644531741881,42.4943815,108.2,108.15,13.8704]
[1644531742780,42.4943815,108.2,108.16,34.22066189]
[1644531743682,42.4943815,108.2,108.16,48.09046189]
[1644531743881,48.4943815,108.2,108.16,48.09046189]
[1644531744085,42.4943815,108.2,108.16,48.09046189]
[1644531744384,42.4943815,108.2,108.16,13.8698]
[1644531744985,47.1153815,108.2,108.16,13.8698]
[1644531745786,42.4943815,108.2,108.16,13.8698]
[1644531747686,42.7443815,108.2,108.16,13.8698]
[1644531747888,48.7443815,108.2,108.16,13.8698]
[1644531748086,42.7443815,108.2,108.16,13.8698]
[1644531750688,48.7443815,108.2,108.16,13.8698]
[1644531750890,42.7443815,108.2,108.16,13.8698]
[1644531751590,48.7443815,108.2,108.16,13.8698]
[1644531751790,42.7443815,108.2,108.16,13.8698]
[1644531756197,48.7443815,108.2,108.16,13.8698]
[1644531757800,42.7443815,108.2,108.16,13.8698]
[1644531759997,47.3653815,108.2,108.16,13.8698]
[1644531760402,42.7443815,108.2,108.16,13.8698]
[1644531761814,47.3653815,108.2,108.16,13.8698]
[1644531762915,42.7443815,108.2,108.16,13.8698]
[1644531769533,4.621,108.21,108.16,13.8698]
[1644531769730,5.92796824,108.23,108.16,20.1198]
[1644531769930,1.30696824,108.23,108.16,20.1198]
[1644531770129,28.27,108.24,108.16,20.1198]
[1644531770130,29.57696824,108.24,108.16,20.1198]
[1644531770332,1.30696824,108.24,108.16,21.92345401]
[1644531770630,47.64941417,108.25,108.19,13.8613]
[1644531770832,46.34244593,108.25,108.2,38.70191727]
[1644531771230,30.28919805,108.26,108.2,38.95191727]
[1644531771632,4.619,108.25,108.2,38.95191727]
[1644531772834,28.98222981,108.26,108.21,13.8613]
[1644531773235,28.98222981,108.26,108.21,14.1113]
[1644531773436,28.98222981,108.26,108.22,35.12792511]
[1644531773835,29.23222981,108.26,108.23,13.8611]
[1644531777439,6.06439994,108.25,108.23,13.8611]
[1644531793988,23.4607,108.26,108.23,13.8611]
[1644531795792,22.9607,108.26,108.23,13.8611]
[1644531796191,3.03219997,108.25,108.23,13.8611]
[1644531796791,2.53219997,108.25,108.23,13.8611]
[1644531797790,27.3297,108.26,108.23,13.8611]
[1644531798191,5.06439994,108.25,108.23,13.8611]
[1644531798592,22.7107,108.26,108.23,13.8611]
[1644531799393,22.2107,108.26,108.23,13.8611]
[1644531800296,3.03219997,108.25,108.24,1.5]
[1644531800499,22.4607,108.26,108.23,13.8611]
[1644531800898,22.4607,108.26,108.24,42.38604269]
[1644531801498,22.4607,108.26,108.25,1.5]
[1644531801799,22.4607,108.26,108.24,42.38604269]
[1644531801800,26.52509994,108.26,108.24,56.24774269]
[1644531803928,26.02509994,108.26,108.24,56.24774269]
[1644531804102,21.9607,108.26,108.25,1.5]
[1644531804304,21.9607,108.26,108.25,13.8602]
[1644531804505,0.25,108.26,108.25,13.8602]
[1644531805206,0.25,108.26,108.25,15.3602]
[1644531805407,0.25,108.26,108.25,15.8602]
[1644531806312,29.18360245,108.28,108.25,15.8602]
[1644531806511,23.2584,108.28,108.25,15.8602]
[1644531807009,23.2584,108.28,108.27,13.8564]
[1644531807210,1.30620245,108.3,108.27,13.8564]
[1644531807411,1.30620245,108.31,108.28,37.11218376]
[1644531808712,1.53219997,108.3,108.29,0.5]
[1644531808912,1.30620245,108.31,108.29,2.0]
[1644531809312,25.43280245,108.32,108.29,2.0]
[1644531809512,2.53219997,108.31,108.29,2.0]
[1644531810519,2.53219997,108.31,108.29,0.5]
[1644531810717,2.78219997,108.31,108.28,50.96848376]
[1644531811116,1.53219997,108.3,108.28,50.96848376]
[1644531811315,2.53219997,108.29,108.28,50.96848376]
[1644531811538,1.53219997,108.3,108.28,50.96848376]
[1644531812038,25.43280245,108.32,108.28,50.96848376]
[1644531813037,24.1266,108.32,108.28,50.96848376]
[1644531814439,24.1266,108.32,108.28,51.21848376]
[1644531814838,0.04509078,108.33,108.28,51.21848376]
[1644531815040,1.35129323,108.34,108.28,51.21848376]
[1644531815240,1.60129323,108.34,108.28,51.21848376]
[1644531815441,1.35129323,108.34,108.28,51.21848376]
[1644531815642,0.04509078,108.34,108.28,51.21848376]
[1644531815943,59.70745182,108.35,108.28,51.21848376]
[1644531816440,104.91621425,108.35,108.28,51.21848376]
[1644531816642,104.91621425,108.35,108.28,13.8563]
[1644531816643,124.76991425,108.35,108.28,13.8563]
[1644531816840,1.30620245,108.34,108.28,13.8563]
[1644531817041,4.616,108.33,108.28,13.8563]
[1644531817441,10.616,108.33,108.27,13.8562]
[1644531817642,71.76346463,108.32,108.28,42.55334405]
[1644531817841,4.616,108.31,108.27,13.8562]
[1644531818042,4.616,108.31,108.23,46.1916]
[1644531818241,4.66109078,108.31,108.23,46.1916]
[1644531818444,0.04509078,108.3,108.23,46.1916]
[1644531818644,4.618,108.29,108.23,46.1916]
[1644531818844,62.7926164,108.3,108.24,48.08806579]
[1644531819143,4.618,108.29,108.24,48.08806579]
[1644531819343,27.96419078,108.3,108.24,48.08806579]
[1644531819744,28.21419078,108.3,108.25,13.8588]
[1644531819945,28.1691,108.3,108.26,43.43296863]
[1644531820145,23.5511,108.3,108.26,43.43296863]
[1644531821548,23.5511,108.3,108.25,13.8588]
[1644531821749,4.617,108.29,108.25,13.8588]
[1644531822651,4.617,108.29,108.25,57.18860221]
[1644531823757,6.04509078,108.3,108.25,57.43860221]
[1644531823954,23.48779078,108.31,108.25,57.43860221]
[1644531824152,23.4427,108.31,108.25,57.43860221]
[1644531825156,23.4427,108.31,108.25,63.43860221]
[1644531825354,23.4427,108.31,108.25,57.43860221]
[1644531825554,23.4427,108.31,108.25,63.43860221]
[1644531825755,0.04509078,108.32,108.25,57.43860221]
[1644531826355,0.04509078,108.32,108.26,1.80365401]
[1644531826554,23.46189078,108.33,108.28,13.8535]
[1644531826755,23.4168,108.33,108.29,34.42740161]
[1644531828157,28.53447593,108.33,108.29,34.42740161]
[1644531828756,28.53447593,108.33,108.3,13.8534]
[1644531828959,4.06439994,108.32,108.31,34.85167317]
[1644531829559,28.28447593,108.33,108.31,36.35167317]
[1644531830261,28.28447593,108.33,108.31,50.20367317]
[1644531830460,30.13149323,108.35,108.31,50.20367317]
[1644531830461,4.06439994,108.32,108.31,50.20367317]
[1644531830661,28.7802,108.35,108.31,50.20367317]
[1644531831662,24.1642,108.35,108.31,50.20367317]
[1644531832063,24.1642,108.35,108.31,48.70367317]
[1644531834666,27.84789078,108.36,108.31,48.95367317]
[1644531834866,23.1878,108.36,108.31,48.70367317]
[1644531835669,23.4378,108.36,108.31,48.70367317]
[1644531835866,29.4378,108.36,108.31,48.70367317]
[1644531836266,23.4378,108.36,108.31,48.70367317]
[1644531838068,60.62937216,108.36,108.31,48.70367317]
[1644531838268,60.62937216,108.36,108.31,13.852]
[1644531838671,66.62937216,108.36,108.31,13.852]
[1644531838869,4.615,108.35,108.31,13.852]
[1644531839768,46.73853422,108.34,108.31,13.852]
[1644531839969,2.53219997,108.33,108.31,13.852]
[1644531840173,4.06439994,108.33,108.31,13.852]
[1644531841979,4.06439994,108.33,108.31,49.83227953]
[1644531842780,4.06439994,108.33,108.32,1.5]
[1644531843077,4.06439994,108.33,108.31,13.852]
[1644531844578,36.4888719,108.34,108.32,1.5]
[1644531844777,42.4888719,108.34,108.32,1.5]
[1644531844975,42.4888719,108.34,108.3,13.853]
[1644531845200,36.4888719,108.34,108.3,13.853]
[1644531845578,36.4888719,108.34,108.3,51.31220962]
[1644531846779,36.7388719,108.34,108.3,51.31220962]
[1644531847379,36.7388719,108.34,108.3,13.853]
[1644531847580,42.7388719,108.34,108.3,13.853]
[1644531849185,36.7388719,108.34,108.3,13.853]
[1644531849383,0.25,108.34,108.3,13.853]
[1644531849584,6.0,108.34,108.3,13.853]
[1644531849784,10.615,108.35,108.3,13.853]
[1644531849986,4.615,108.35,108.3,13.853]
[1644531850184,10.615,108.35,108.3,13.853]
[1644531850484,11.92120245,108.35,108.31,45.41692255]
[1644531850684,6.0,108.35,108.31,59.26842255]
[1644531850889,30.53909323,108.36,108.31,59.26842255]
[1644531851088,30.49400245,108.36,108.31,59.26842255]
[1644531851288,30.74400245,108.36,108.31,59.26842255]
[1644531852287,30.49400245,108.36,108.31,59.26842255]
[1644531852708,29.1878,108.36,108.31,59.26842255]
[1644531853110,29.1878,108.36,108.31,59.51842255]
[1644531853510,30.49400245,108.36,108.31,59.51842255]
[1644531853711,23.1878,108.36,108.31,59.51842255]
[1644531854310,1.35129323,108.37,108.31,59.51842255]
[1644531854510,7.35129323,108.37,108.31,59.51842255]
[1644531854718,1.35129323,108.37,108.31,61.32193856]
[1644531855014,6.04509078,108.37,108.31,83.50102697]
[1644531855512,0.04509078,108.37,108.31,83.50102697]
[1644531855714,6.04509078,108.37,108.31,83.50102697]
[1644531856511,0.04509078,108.37,108.31,83.50102697]
[1644531856712,0.04509078,108.39,108.31,83.50102697]
[1644531856911,52.1137368,108.4,108.31,83.50102697]
[1644531856912,0.04509078,108.37,108.31,83.50102697]
[1644531857111,52.1137368,108.4,108.31,83.50102697]
[1644531857112,4.65909078,108.39,108.31,83.50102697]
[1644531857318,0.04509078,108.38,108.31,83.50102697]
[1644531858115,4.65909078,108.39,108.31,83.50102697]
[1644531858316,0.04509078,108.38,108.31,83.50102697]
[1644531859217,0.04509078,108.38,108.31,97.17532697]
[1644531859414,0.04509078,108.39,108.31,97.17532697]
[1644531859616,0.04509078,108.38,108.31,97.17532697]
[1644531859915,0.04509078,108.39,108.31,97.17532697]
[1644531860117,0.04509078,108.38,108.31,97.17532697]
[1644531860815,0.04509078,108.39,108.31,97.17532697]
[1644531861715,0.04509078,108.4,108.31,105.91512599]
[1644531861915,0.04509078,108.38,108.31,105.91512599]
[1644531862115,0.04509078,108.39,108.32,4.614]
[1644531862317,0.04509078,108.38,108.32,6.25]
[1644531862517,0.04509078,108.4,108.33,36.43760442]
[1644531862721,0.04509078,108.38,108.33,36.43760442]
[1644531862915,0.04509078,108.4,108.34,17.98260442]
[1644531863115,0.04509078,108.38,108.34,17.98260442]
[1644531863315,0.04509078,108.4,108.35,37.30029661]
[1644531863714,0.04509078,108.4,108.35,37.55029661]
[1644531864118,0.04509078,108.4,108.35,43.55029661]
[1644531864317,0.04607891,108.41,108.35,51.39059661]
[1644531864520,0.04607891,108.41,108.35,53.19411262]
[1644531865120,0.04607891,108.41,108.35,59.19411262]
[1644531865320,0.04607891,108.41,108.35,53.19411262]
[1644531865618,0.04607891,108.41,108.37,40.23635603]
[1644531865819,34.15334523,108.42,108.38,13.839]
[1644531865820,74.8820653,108.42,108.38,13.839]
[1644531866020,74.92814421,108.42,108.38,13.839]
[1644531866220,34.15334523,108.42,108.38,13.839]
[1644531866619,10.72465445,108.42,108.38,13.839]
[1644531867221,10.72465445,108.42,108.38,50.60606049]
[1644531868421,15.33665445,108.42,108.38,50.60606049]
[1644531868821,15.33665445,108.42,108.38,13.839]
[1644531869921,15.33665445,108.42,108.38,49.56704615]
[1644531872825,15.58665445,108.42,108.38,49.56704615]
[1644531876228,10.97465445,108.42,108.38,49.56704615]
[1644531878231,45.43926616,108.42,108.38,49.56704615]
[1644531878434,50.05126616,108.42,108.38,49.56704615]
[1644531878833,15.58665445,108.42,108.38,49.56704615]
[1644531879233,10.97465445,108.42,108.38,49.56704615]
[1644531880036,50.32565368,108.42,108.38,13.839]
[1644531880243,56.24385613,108.42,108.38,13.839]
[1644531880437,67.24585613,108.42,108.37,13.8437]
[1644531880641,0.04607891,108.41,108.37,13.8437]
[1644531880838,51.63185613,108.42,108.37,13.8437]
[1644531881139,47.30831498,108.4,108.35,44.56634587]
[1644531881339,53.30831498,108.4,108.35,44.56634587]
[1644531882344,6.0,108.4,108.35,44.56634587]
[1644531882748,11.96428136,108.41,108.36,13.845]
[1644531882945,1.30620245,108.4,108.36,13.845]
[1644531883346,7.30620245,108.4,108.37,36.87292013]
[1644531883547,2.06439993,108.39,108.37,36.87292013]
[1644531883748,2.06439993,108.39,108.36,13.845]
[1644531884448,3.37060238,108.39,108.36,13.845]
[1644531887148,3.37060238,108.39,108.37,4.0]
[1644531887349,8.06439993,108.39,108.37,4.0]
[1644531887550,8.06439993,108.39,108.36,13.845]
[1644531887751,9.37060238,108.39,108.36,13.845]
[1644531887951,8.06439993,108.39,108.36,13.845]
[1644531888357,9.37060238,108.39,108.37,46.7542474]
[1644531888557,9.62060238,108.39,108.37,50.7542474]
[1644531888955,9.62060238,108.39,108.37,4.0]
[1644531889455,9.62060238,108.39,108.36,13.845]
[1644531889654,9.62060238,108.39,108.37,1.5]
[1644531889854,9.62060238,108.39,108.37,4.0]
[1644531890055,9.08840242,108.39,108.37,4.0]
[1644531890457,7.55620245,108.39,108.37,4.0]
[1644531891260,7.55620245,108.39,108.36,13.845]
[1644531892460,7.55620245,108.39,108.36,62.26165398]
[1644531892760,7.55620245,108.39,108.37,2.11328801]
[1644531893659,6.25,108.39,108.37,15.95728801]
[1644531893860,0.25,108.39,108.38,44.24435579]
[1644531894074,6.25,108.39,108.38,44.24435579]
[1644531894678,8.31439993,108.39,108.38,44.24435579]
[1644531895274,6.25,108.39,108.38,44.24435579]
[1644531897277,7.78219997,108.39,108.38,44.24435579]
[1644531897677,6.0,108.39,108.38,44.24435579]
[1644531897876,4.21780003,108.39,108.38,13.8431]
[1644531898777,1.30620245,108.42,108.38,13.8431]
[1644531898977,0.04607891,108.41,108.38,58.97730145]
[1644531899177,1.30620245,108.42,108.39,4.0]
[1644531899578,7.30620245,108.42,108.4,13.839]
[1644531899779,1.55620245,108.42,108.4,13.839]
[1644531900582,1.55620245,108.42,108.41,4.0]
[1644531900780,1.55620245,108.42,108.41,17.8388]
[1644531901381,7.55620245,108.42,108.41,17.8388]
[1644531901981,7.30620245,108.42,108.41,17.8388]
[1644531903983,6.0,108.42,108.41,17.8388]
[1644531911992,6.0,108.42,108.41,4.0]
[1644531912493,8.06439993,108.42,108.41,1.90493547]
[1644531912693,8.06439993,108.42,108.36,46.1389]
[1644531912993,24.7376,108.41,108.37,39.83526395]
[1644531913796,24.7376,108.41,108.39,13.8415]
[1644531913995,24.7376,108.41,108.39,52.71438871]
[1644531915296,2.06439993,108.4,108.39,13.8415]
[1644531915695,2.06439993,108.4,108.39,15.3415]
[1644531915896,6.0,108.42,108.39,15.74651019]
[1644531916295,1.30620245,108.44,108.39,61.88379265]
[1644531916495,1.35240577,108.44,108.39,61.88379265]
[1644531917896,25.08670577,108.44,108.39,61.88379265]
[1644531919801,35.69770577,108.44,108.39,61.88379265]
[1644531920002,36.29356082,108.43,108.39,61.88379265]
[1644531920404,31.08670577,108.44,108.39,61.88379265]
[1644531923010,31.33670577,108.44,108.39,61.88379265]
[1644531924006,30.03050332,108.44,108.39,61.88379265]
[1644531924807,31.33670577,108.44,108.39,61.88379265]
[1644531926209,7.60240577,108.44,108.39,61.88379265]
[1644531931611,44.49994782,108.44,108.39,61.88379265]
[1644531931810,7.60240577,108.44,108.39,61.88379265]
[1644531932712,54.81808396,108.44,108.39,61.88379265]
[1644531937115,59.42908396,108.44,108.39,61.88379265]
[1644531938419,54.81808396,108.44,108.39,61.88379265]
[1644531939618,1.30620245,108.43,108.39,61.88379265]
[1644531939817,41.64231319,108.42,108.39,15.74651019]
[1644531940220,5.96340577,108.44,108.39,15.74651019]
[1644531940420,30.09720577,108.44,108.39,15.74651019]
[1644531940819,24.18000332,108.44,108.39,15.99651019]
[1644531941218,24.18000332,108.44,108.4,34.37380514]
[1644531941419,24.1338,108.44,108.41,13.8374]
[1644531941619,24.1338,108.44,108.42,4.0]
[1644531942019,2.06439993,108.43,108.42,4.0]
[1644531942220,24.1338,108.44,108.42,4.0]
[1644531942741,24.1338,108.44,108.42,2.5]
[1644531943141,1.53219997,108.43,108.42,2.5]
[1644531943342,2.06439993,108.43,108.42,2.5]
[1644531943541,24.1338,108.44,108.42,4.0]
[1644531943742,30.1338,108.44,108.42,17.8373]
[1644531944541,2.06439993,108.43,108.42,17.8373]
[1644531944742,30.1338,108.44,108.42,17.8373]
[1644531948247,31.44000245,108.44,108.42,17.8373]
[1644531950046,1.30620245,108.45,108.42,17.8373]
[1644531950245,0.46321295,108.46,108.42,32.28309837]
[1644531950850,0.46321295,108.46,108.43,42.38919345]
[1644531951049,0.46321295,108.46,108.44,13.8322]
[1644531951250,0.46321295,108.46,108.45,44.99117541]
[1644531952852,0.46321295,108.46,108.45,58.82337541]
[1644531957058,2.52761288,108.46,108.45,58.82337541]
[1644531957260,2.52761288,108.46,108.45,56.91899103]
[1644531957459,0.46321295,108.46,108.45,60.48243041]
[1644531958458,2.52761288,108.46,108.45,56.91899103]
[1644531959260,0.46321295,108.46,108.45,60.48243041]
[1644531960265,2.52761288,108.46,108.45,60.48243041]
[1644531960462,0.99541291,108.46,108.45,56.91899103]
[1644531961061,0.99541291,108.46,108.45,59.41899103]
[1644531961267,0.99541291,108.46,108.45,60.91899103]
[1644531961764,0.46321295,108.46,108.45,60.91899103]
[1644531962166,0.29620332,108.49,108.45,60.91899103]
[1644531962364,30.23160332,108.5,108.45,60.91899103]
[1644531962567,30.1854,108.5,108.45,60.91899103]
[1644531963164,70.36911129,108.5,108.45,60.91899103]
[1644531963367,70.41531461,108.5,108.45,60.91899103]
[1644531963567,4.609,108.49,108.45,60.91899103]
[1644531964865,4.859,108.49,108.45,60.91899103]
[1644531965065,4.859,108.49,108.45,56.91899103]
[1644531966269,0.25,108.49,108.45,56.91899103]
[1644531966466,70.16531461,108.5,108.45,56.91899103]
[1644531966666,70.41531461,108.5,108.45,56.91899103]
[1644531967367,71.72151706,108.5,108.45,56.91899103]
[1644531967973,71.72151706,108.5,108.45,13.8322]
[1644531968168,71.72151706,108.5,108.41,60.30579837]
[1644531968372,4.609,108.49,108.4,16.1774546]
[1644531968568,0.04620332,108.48,108.4,6.0]
[1644531968769,5.96240577,108.49,108.39,17.05605566]
[1644531969168,34.25970821,108.48,108.4,47.30043798]
[1644531969370,0.04620332,108.47,108.41,13.8367]
[1644531969568,0.04620332,108.47,108.42,37.88872269]
[1644531969772,38.26133355,108.46,108.42,37.88872269]
[1644531971470,38.26133355,108.46,108.41,13.8367]
[1644531971671,47.79733355,108.46,108.41,13.8367]
[1644531971878,47.79733355,108.46,108.4,19.8382]
[1644531972071,0.04620332,108.45,108.4,13.8382]
[1644531972270,0.04620332,108.45,108.4,19.8382]
[1644531972473,0.04620332,108.45,108.4,59.55774558]
[1644531973776,0.04620332,108.45,108.4,53.55774558]
[1644532000945,0.04620332,108.45,108.4,59.55774558]
[1644532001549,0.04620332,108.45,108.4,53.55774558]
[1644532013377,5.24627984,108.43,108.4,13.8382]
[1644532013577,2.06439993,108.42,108.4,13.8382]
[1644532013779,12.80127984,108.43,108.41,1.90159043]
[1644532013979,5.24627984,108.43,108.41,1.90159043]
[1644532014377,41.01588524,108.43,108.41,1.90159043]
[1644532014579,41.01588524,108.43,108.41,0.40159043]
[1644532014777,41.01588524,108.43,108.39,13.8404]
[1644532014978,52.17088524,108.43,108.39,13.8404]
[1644532015177,52.17088524,108.43,108.36,1.34171394]
[1644532015480,48.59877651,108.41,108.37,0.25]
[1644532016280,48.59877651,108.41,108.36,0.274]
[1644532016685,48.59877651,108.41,108.36,0.024]
[1644532017784,48.59877651,108.41,108.37,13.843]
[1644532018384,48.59877651,108.41,108.37,14.093]
[1644532018584,54.59877651,108.41,108.37,14.093]
[1644532018785,48.59877651,108.41,108.37,14.093]
[1644532018985,54.59877651,108.41,108.37,14.093]
[1644532019986,54.59877651,108.41,108.37,13.843]
[1644532021791,54.59877651,108.41,108.37,14.093]
[1644532023289,48.59877651,108.41,108.37,14.093]
[1644532035730,48.59877651,108.41,108.37,14.117]
[1644532037630,48.59877651,108.41,108.37,14.093]
[1644532049055,48.59877651,108.41,108.37,14.117]
[1644532050556,48.59877651,108.41,108.37,48.58417789]
[1644532050761,48.59877651,108.41,108.37,14.117]
[1644532054870,48.59877651,108.41,108.37,60.19592471]
[1644532055691,48.59877651,108.41,108.37,14.117]
[1644532064703,28.2208,108.42,108.37,14.117]
[1644532064903,23.6088,108.42,108.37,14.117]
[1644532065705,43.09154969,108.41,108.37,54.26480132]
[1644532066806,43.09154969,108.41,108.37,14.117]
[1644532068008,43.09154969,108.41,108.37,52.28617972]
[1644532068610,4.612,108.42,108.37,52.28617972]
[1644532068810,9.85827984,108.43,108.37,58.28617972]
[1644532069009,5.24627984,108.43,108.37,58.28617972]
[1644532069416,0.04620332,108.44,108.37,58.28617972]
[1644532069609,45.62358938,108.44,108.37,58.28617972]
[1644532071013,45.62358938,108.44,108.37,60.08963979]
[1644532072915,0.04620332,108.44,108.37,60.08963979]
[1644532073314,0.04620332,108.44,108.37,67.61405373]
[1644532073516,0.04620332,108.44,108.37,66.29633979]
[1644532073718,0.04620332,108.45,108.37,66.29633979]
[1644532073918,38.67997485,108.45,108.37,66.29633979]
[1644532074116,0.04620332,108.44,108.37,66.29633979]
[1644532074516,0.04620332,108.44,108.37,81.17379439]
[1644532076621,0.04620332,108.45,108.37,95.25716225]
[1644532076818,0.04620332,108.46,108.4,13.8337]
[1644532077223,0.04620332,108.46,108.4,15.63716007]
[1644532077422,5.91820245,108.48,108.41,36.50700807]
[1644532077423,0.04620332,108.47,108.41,36.50700807]
[1644532077623,0.04620332,108.45,108.41,36.50700807]
[1644532077826,0.04620332,108.45,108.43,35.64801948]
[1644532078025,4.61,108.46,108.45,13.8318]
[1644532079126,4.61,108.46,108.45,51.03295147]
[1644532079826,4.61,108.46,108.45,51.28295147]
[1644532081130,4.61,108.46,108.45,14.0818]
[1644532081741,6.0,108.48,108.45,14.0818]
[1644532081941,4.65620332,108.49,108.46,1.54389005]
[1644532082141,2.06439993,108.48,108.47,13.8312]
[1644532083644,8.06439993,108.48,108.47,13.8312]
[1644532085743,6.0,108.48,108.47,13.8312]
[1644532090052,2.19698492,108.54,108.47,13.8312]
[1644532090265,1.30186319,108.53,108.47,13.8312]
[1644532090457,1.30186319,108.54,108.47,13.8312]
[1644532090653,5.90986319,108.55,108.47,15.63466007]
[1644532090857,4.607,108.56,108.47,45.38007567]
[1644532091153,4.607,108.56,108.47,60.33450068]
[1644532091553,1.30186319,108.59,108.47,68.71105638]
[1644532091757,1.30186319,108.59,108.48,24.658]
[1644532092056,4.607,108.58,108.51,13.8217]
[1644532092256,4.607,108.58,108.51,23.2767]
[1644532092453,5.90786319,108.6,108.51,23.2767]
[1644532092857,5.90786319,108.6,108.51,25.08148883]
[1644532093055,4.606,108.6,108.51,25.08148883]
[1644532093257,4.606,108.6,108.51,31.08148883]
[1644532094662,4.856,108.6,108.51,31.08148883]
[1644532095058,4.606,108.6,108.51,45.94823776]
[1644532095660,4.605,108.61,108.51,45.94823776]
[1644532095962,4.605,108.62,108.51,60.90266277]
[1644532096561,4.605,108.62,108.51,69.27921847]
[1644532097762,4.855,108.62,108.51,69.27921847]
[1644532098363,4.605,108.62,108.51,69.27921847]
[1644532098866,4.605,108.62,108.51,67.27921847]
[1644532099665,22.9022,108.61,108.51,67.27921847]
[1644532100363,4.605,108.63,108.51,67.27921847]
[1644532100567,22.9022,108.64,108.51,67.27921847]
[1644532100765,4.605,108.63,108.51,159.57921847]
[1644532101473,4.605,108.63,108.51,67.27921847]
[1644532101765,24.8871,108.62,108.51,67.27921847]
[1644532102164,4.605,108.64,108.51,67.27921847]